Cogmind - Beta 11.2 @@@ ROGUE MODE // 2022.12.31 @ 11:47:24 // Winter2022/Polymind Player: Trione Result: Destroyed by Enhanced Grunt with Neutron Cannon Performance ------------- Evolutions (3) 1500 Regions Visited (9) 1800 Robots Destroyed (41) 205 Value Destroyed (1472) 1472 Prototype IDs (216) 4320 Alien Tech Used (0) 0 Bonus (10037) 10037 TOTAL SCORE: 18554 Bonus ------- Polymind Skill 5474 Pacifist 200 Follower Combat Kills 1063 Met Data Miner 300 Used Data Conduit 3000 Cogmind --------- Core Integrity 0/700 Matter 0/0 Energy 12/100 System Corruption 12% Temperature Cool (0) Movement Core (50) Location -7/Data Miner Parts ------- > --- POWER (1) -------- (None) > --- PROPULSION (2) --- (None) > --- UTILITY (3) ------ (None) > --- WEAPON (3) ------- (None) > --- INVENTORY (0) ---- (None) Peak State ------------ > --- POWER ------------ Micro Nuclear Core > --- PROPULSION ------- Gravmag System Gravmag System > --- UTILITY ---------- Improved Heat Sink Improved Heat Sink Target Analyzer > --- WEAPON ----------- Shock Rifle Shock Rifle Remote Datajack > --- INVENTORY -------- (None) [Rating: 31] Favorites ----------- Power Micro Nuclear Core Engine Improved Deuterium Engine Power Core Micro Nuclear Core Propulsion Light Treads Treads Light Treads Leg Aluminum Leg Wheel Wheel Hover Unit Gravmag System Flight Unit VTOL Module Utility Improved Heat Sink Device Improved Heat Sink Processor Target Analyzer Protection Improved Light Armor Plating Weapon Shock Rifle Energy Gun Shock Rifle Ballistic Gun Flak Gun Special Weapon Remote Datajack Build | -11 -10 -9 -8 -7 -7 -7 -7 -7 -7 ------- Run | Scr Mat Mat Mat Fac Was Fac Low Low Dat Slots Evolved . | . . . . . . . . . . Power . | . . . . . . . . . . Propulsion . | . . . . . . . . . . Utility . | . . . . . . . . . . Weapon . | . . . . . . . . . . Parts Attached . | . . . . . . . . . . Power . | . . . . . . . . . . Engine . | . . . . . . . . . . Core . | . . . . . . . . . . Reactor . | . . . . . . . . . . Propulsion . | . . . . . . . . . . Treads . | . . . . . . . . . . Leg . | . . . . . . . . . . Wheel . | . . . . . . . . . . Hover . | . . . . . . . . . . Flight . | . . . . . . . . . . Utility . | . . . . . . . . . . Device . | . . . . . . . . . . Storage . | . . . . . . . . . . Processor . | . . . . . . . . . . Hackware . | . . . . . . . . . . Protection . | . . . . . . . . . . Artifact . | . . . . . . . . . . Weapon . | . . . . . . . . . . Energy Gun . | . . . . . . . . . . Energy Cannon . | . . . . . . . . . . Ballistic Gun . | . . . . . . . . . . Ballistic Cannon . | . . . . . . . . . . Launcher . | . . . . . . . . . . Special Weapon . | . . . . . . . . . . Impact Weapon . | . . . . . . . . . . Slashing Weapon . | . . . . . . . . . . Piercing Weapon . | . . . . . . . . . . Special Melee Weapon . | . . . . . . . . . . Unidentified Prototypes . | . . . . . . . . . . Parts Lost 27 | . . 5 6 10 . . . . 6 Power 4 | . . 1 1 2 . . . . . Propulsion 8 | . . 1 2 3 . . . . 2 Utility 7 | . . 2 1 2 . . . . 2 Weapon 8 | . . 1 2 3 . . . . 2 Highest Loss Streak 6 | . . 3 3 4 . . . . 6 To Critical Strikes 1 | . . . 1 . . . . . . Average Slot Usage (%) 87 | . 90 73 75 86 100 100 100 100 91 Engine 4 | . 16 5 . 8 . . . . . Core 5 | . . . 11 2 11 11 11 11 11 Treads 10 | . . 19 . 18 . . . . . Leg 2 | . . . 30 . . . . . . Hover 8 | . 9 1 . . 22 22 22 22 17 Flight 1 | . . . . 2 . . . . . Device 21 | . 16 22 15 21 22 22 22 22 20 Processor 4 | . 21 1 . . 11 11 11 11 11 Protection 3 | . . 4 . 8 . . . . . Energy Gun 14 | . . 11 18 8 22 22 22 22 20 Ballistic Gun 5 | . . 4 . 12 . . . . . Special Weapon 3 | . . . . . 11 11 11 11 11 Naked Turns 85 | . 10 . 2 72 . . . . 1 Heaviest Build 23 | . 4 18 9 23 17 17 17 17 17 Greatest Support 40 | 3 20 40 20 40 18 18 18 18 18 Greatest Overweight (x) 1 | . . 1 1 1 . . . . 1 Average Overweight (x) . | . . . . . . . . . . Largest Inventory Capacity 10 | . 10 1 1 5 5 5 5 5 5 Average Capacity 2 | . 6 . . . 5 5 5 5 4 Most Carried 10 | . 10 . . . . . . . . Average Carried . | . 6 . . . . . . . . Final Capacity 5 | . . 1 . 5 5 5 5 5 . Final Carried . | . . . . . . . . . . Class Distribution -------------------- 49% | Sentry 35% | Programmer 6% | Grunt 4% | Swarmer Dominant Class ---------------- Mechanic | -10/Materials Sentry | -9/Materials Grunt | -8/Materials Sentry | -7/Factory Programmer | -7/Waste Programmer | -7/Factory Programmer | -7/Lower Caves Programmer | -7/Lower Caves Programmer | -7/Data Miner Resources | -11 -10 -9 -8 -7 -7 -7 -7 -7 -7 ----------- Run | Scr Mat Mat Mat Fac Was Fac Low Low Dat Matter Collected 269 | . . 52 . 217 . . . . . Remotely . | . . . . . . . . . . Salvage Created 1437 | . . 611 468 280 . 78 . . . Parts 88 | . . 51 20 16 . 1 . . . Haulers Intercepted 3 | . . 3 . . . . . . . Recyclers Shooed . | . . . . . . . . . . Parts Field Recycled . | . . . . . . . . . . Retrieved Matter . | . . . . . . . . . . Parts Self-Destructed 6 | . . . . . . . 6 . . Prevented 1 | . . . . . . . 1 . . Kills | -11 -10 -9 -8 -7 -7 -7 -7 -7 -7 ------- Run | Scr Mat Mat Mat Fac Was Fac Low Low Dat Combat Hostiles Destroyed 33 | . . 11 11 11 . . . . . Guns 33 | . . 11 11 11 . . . . . Classes Destroyed 9 | . . 6 2 1 . . . . . Hauler 3 | . . 3 . . . . . . . Recycler 3 | . . 2 . . . 1 . . . Operator 1 | . . 1 . . . . . . . Watcher 1 | . . . 1 . . . . . . Swarmer 8 | . . 2 3 3 . . . . . Grunt 14 | . . 4 5 5 . . . . . Duelist 1 | . . . 1 . . . . . . Sentry 9 | . . 5 2 2 . . . . . Programmer 1 | . . . . 1 . . . . . Best Kill Streak 4 | . . 3 4 2 . 1 . . . Combat Bots Only 4 | . . 3 4 2 . . . . . Max Kills in Single Turn 1 | . . 1 1 1 . 1 . . . Gunslinging . | . . . . . . . . . . Exploded . | . . . . . . . . . . Melee . | . . . . . . . . . . Uniques/NPCs Destroyed . | . . . . . . . . . . Combat | -11 -10 -9 -8 -7 -7 -7 -7 -7 -7 -------- Run | Scr Mat Mat Mat Fac Was Fac Low Low Dat Damage Taken 4057 | . . 811 584 1993 . 93 . . 576 Core 1051 | . . 154 173 371 . . . . 353 Absorbed by Shields . | . . . . . . . . . . Regen/Repaired (Parts) 5 | . . . . . . 5 . . . Core Remaining (%) 82 | 100 100 61 68 . . . . . . Volleys Fired 178 | . . 74 54 40 2 1 3 . 4 Largest 2 | . . 2 1 2 2 2 2 . 2 Hottest 108 | . . 79 65 108 100 100 100 . 100 Shots Fired 229 | . . 98 54 59 4 2 6 . 6 Gun 229 | . . 98 54 59 4 2 6 . 6 Cannon . | . . . . . . . . . . Launcher . | . . . . . . . . . . Special . | . . . . . . . . . . Kinetic 61 | . . 24 . 37 . . . . . Thermal 144 | . . 74 54 16 . . . . . Explosive . | . . . . . . . . . . Electromagnetic 24 | . . . . 6 4 2 6 . 6 Robot Hit Streak 23 | . . 23 10 17 19 3 1 . 6 Robot Miss Streak 7 | . . 7 3 5 1 . 4 . 1 Penetration Max . | . . . . . . . . . . Secondary Targets . | . . . . . . . . . . Shots Hit Robots 176 | . . 67 43 55 3 2 1 . 5 Core Hits 112 | . . 28 23 53 2 1 1 . 4 Critical Kills . | . . . . . . . . . . Critical Parts Destroyed . | . . . . . . . . . . Critical Strikes 8 | . . 6 1 . . . . . 1 Burn 7 | . . 6 1 . . . . . . Corrupt 1 | . . . . . . . . . 1 Melee Attacks . | . . . . . . . . . . Impact . | . . . . . . . . . . Slashing . | . . . . . . . . . . Piercing . | . . . . . . . . . . Sneak Attacks . | . . . . . . . . . . Combat Hostiles . | . . . . . . . . . . Follow-up Attacks . | . . . . . . . . . . Damage Inflicted 2939 | . . 1063 686 1082 4 37 15 . 52 Guns 2912 | . . 1036 686 1082 4 37 15 . 52 Cannons . | . . . . . . . . . . Explosions 21 | . . 21 . . . . . . . Melee . | . . . . . . . . . . Ramming 6 | . . 6 . . . . . . . Kinetic 860 | . . 193 . 667 . . . . . Thermal 1846 | . . 843 686 317 . . . . . Explosive . | . . . . . . . . . . Electromagnetic 227 | . . 21 . 98 4 37 15 . 52 Impact . | . . . . . . . . . . Slashing . | . . . . . . . . . . Piercing . | . . . . . . . . . . Highest Corruption 12 | . . . 1 12 12 12 12 12 12 Average Corruption 8 | . . . 1 4 12 12 12 12 12 Corruption Purged . | . . . . . . . . . . Corruption Blocked . | . . . . . . . . . . Effects 88 | . . . . 31 14 20 16 4 3 Message Errors 27 | . . . . 12 4 4 3 2 2 Matter Fused 6 | . . . . 6 . . . . . Heat Flow Errors 13 | . . . . 3 3 3 4 . . Energy Discharges 14 | . . . . 5 1 3 4 . 1 Data Loss (minor) 14 | . . . . 3 4 2 4 1 . Data Loss (major) 6 | . . . . 1 . 3 1 1 . Misfires 1 | . . . . . 1 . . . . Alerts 3 | . . . . 1 1 1 . . . Misdirections 4 | . . . . . . 4 . . . Overload Shots . | . . . . . . . . . . Overflow Damage . | . . . . . . . . . . Projectiles . | . . . . . . . . . . Explosions . | . . . . . . . . . . Melee . | . . . . . . . . . . Knockbacks . | . . . . . . . . . . Impact . | . . . . . . . . . . Kinetic . | . . . . . . . . . . Secondary . | . . . . . . . . . . Self-Inflicted Damage . | . . . . . . . . . . Shots . | . . . . . . . . . . Rammed 4 | . . 4 . . . . . . . Targets Rammed 4 | . . 4 . . . . . . . Kicked . | . . . . . . . . . . Crushed . | . . . . . . . . . . Highest Temperature 267 | . . 64 77 192 229 267 263 . 20 Average Temperature 55 | . . 16 34 34 101 128 131 . 16 Received Heat Transfer 975 | . . 177 252 537 . 9 . . . Siege Activations . | . . . . . . . . . . Robots Corrupted . | . . . . . . . . . . Combat Hostiles . | . . . . . . . . . . Parts Fried . | . . . . . . . . . . Impact Corruptions . | . . . . . . . . . . Robots Melted . | . . . . . . . . . . Combat Hostiles . | . . . . . . . . . . Parts Melted 12 | . . 4 8 . . . . . . Heat Transferred 4868 | . . 2553 1665 650 . . . . . Parts Sabotaged . | . . . . . . . . . . Parts Stolen . | . . . . . . . . . . Parts Stripped . | . . . . . . . . . . Power Chain Reactions . | . . . . . . . . . . Missiles Intercepted . | . . . . . . . . . . Alert | -11 -10 -9 -8 -7 -7 -7 -7 -7 -7 ------- Run | Scr Mat Mat Mat Fac Was Fac Low Low Dat Peak Influence 1468 | . 57 284 185 140 26 1468 . . . Initial 54 | . . 24 54 2 26 . . . . Average 147 | . 21 167 86 49 13 589 . . . Maximum Alert Level 4 | . . 1 . . . 4 . . . Low Security (%) 79 | 100 100 57 100 100 100 14 . . . Level 1 10 | . . 42 . . . 13 . . . Level 2 6 | . . . . . . 48 . . . Level 3 . | . . . . . . 7 . . . Level 4 2 | . . . . . . 16 . . . Level 5 . | . . . . . . . . . . High Security . | . . . . . . . . . . Max Security . | . . . . . . . . . . Squads Dispatched 13 | . . 1 4 4 . 4 . . . Investigation 1 | . . . . 1 . . . . . Extermination 2 | . . . . 2 . . . . . Reinforcement 4 | . . 1 1 1 . 1 . . . Assault 2 | . . . . . . 2 . . . Garrison 4 | . . . 3 . . 1 . . . Intercept . | . . . . . . . . . . Searches Triggered . | . . . . . . . . . . Construction Impeded . | . . . . . . . . . . Haulers Reinforced 1 | . . . . . . 1 . . . Active Scanning Responses . | . . . . . . . . . . Cargo Convoy Interrupts . | . . . . . . . . . . Stealth | -11 -10 -9 -8 -7 -7 -7 -7 -7 -7 --------- Run | Scr Mat Mat Mat Fac Was Fac Low Low Dat Distress Signals 4 | . . 1 1 . . 2 . . . Communications Jammed . | . . . . . . . . . . Distress Signals . | . . . . . . . . . . Times Spotted 113 | . 2 21 21 26 20 18 . . 5 Peak Tracking Total 8 | . 2 5 5 8 5 3 . . 4 Tactical Retreats 5 | . . 1 1 2 1 . . . . Traps | -11 -10 -9 -8 -7 -7 -7 -7 -7 -7 ------- Run | Scr Mat Mat Mat Fac Was Fac Low Low Dat Traps Triggered 6 | . . 1 2 2 . 1 . . . Indirectly . | . . . . . . . . . . Trap Hack Attempts . | . . . . . . . . . . Triggered . | . . . . . . . . . . Disarmed . | . . . . . . . . . . Reprogrammed . | . . . . . . . . . . Reused . | . . . . . . . . . . Traps Extracted . | . . . . . . . . . . Installed . | . . . . . . . . . . Triggered 1 | . . . . . . . 1 . . Machines | -11 -10 -9 -8 -7 -7 -7 -7 -7 -7 ---------- Run | Scr Mat Mat Mat Fac Was Fac Low Low Dat Machines Disabled 5 | . . 1 . . . 4 . . . Max in Single Turn 1 | . . 1 . . . . . . . Garrison Access 1 | . . . . . . 1 . . . Machines Sabotaged . | . . . . . . . . . . Garrisons Compromised . | . . . . . . . . . . Overloaded Fab Kills . | . . . . . . . . . . Hacking | -11 -10 -9 -8 -7 -7 -7 -7 -7 -7 --------- Run | Scr Mat Mat Mat Fac Was Fac Low Low Dat Machines Accessed 20 | . . 5 1 3 . 5 1 1 4 Terminals 13 | . . 5 1 2 . 5 . . . Fabricators . | . . . . . . . . . . Repair Stations . | . . . . . . . . . . Recycling Units . | . . . . . . . . . . Scanalyzers . | . . . . . . . . . . Garrison Access 1 | . . . . 1 . . . . . Total Hacks 66 | . . 13 4 8 . 11 1 1 28 Successful 43 | . . 4 3 1 . 5 1 1 28 Failed 23 | . . 9 1 7 . 6 . . . Catastrophic 2 | . . . . 1 . 1 . . . Database Lockouts . | . . . . . . . . . . Manual 30 | . . 11 4 5 . 10 . . . Terminals 33 | . . 13 4 5 . 11 . . . Fabricators . | . . . . . . . . . . Repair Stations . | . . . . . . . . . . Recycling Units . | . . . . . . . . . . Scanalyzers . | . . . . . . . . . . Garrison Access 3 | . . . . 3 . . . . . Terminal Hacks 34 | . . 1 1 1 . 1 1 1 28 Record 11 | . . . . . . . . . 11 Part Schematic 10 | . . . . . . . . . 10 Robot Schematic 4 | . . . . . . . . . 4 Prototype ID Bank 3 | . . . . . . . . . 3 Open Door 2 | . . . . . . . 1 1 . Branch Access Points 1 | . . . . . . 1 . . . Unreport Threat 1 | . . . 1 . . . . . . Locate Traps 2 | . . 1 . 1 . . . . . Fabricator Hacks . | . . . . . . . . . . Repair Station Hacks . | . . . . . . . . . . Recycling Unit Hacks . | . . . . . . . . . . Scanalyzer . | . . . . . . . . . . Garrison Access Hacks . | . . . . . . . . . . Unauthorized Hacks 9 | . . 3 2 . . 4 . . . Terminals 9 | . . 3 2 . . 4 . . . Track 3 | . . 1 1 . . 1 . . . Botnet 6 | . . 2 1 . . 3 . . . Fabricators . | . . . . . . . . . . Repair Stations . | . . . . . . . . . . Recycling Units . | . . . . . . . . . . Scanalyzers . | . . . . . . . . . . Garrison Access . | . . . . . . . . . . Data Cores Recovered 1 | . . . . . . 1 . . . Used . | . . . . . . . . . . Hacking Detections 13 | . . 4 1 3 . 5 . . . Full Trace Events 1 | . . . . 1 . . . . . Feedback Events . | . . . . . . . . . . Feedback Blocked . | . . . . . . . . . . Robot Schematics Acquired 4 | . . . . . . . . . 4 Robots Built . | . . . . . . . . . . Authchips . | . . . . . . . . . . Time . | . . . . . . . . . . Total Robot Build Rating . | . . . . . . . . . . Part Schematics Acquired 10 | . . . . . . . . . 10 Parts Built . | . . . . . . . . . . Authchips . | . . . . . . . . . . Time . | . . . . . . . . . . Total Part Build Rating . | . . . . . . . . . . Parts Repaired . | . . . . . . . . . . Time . | . . . . . . . . . . Parts Recycled . | . . . . . . . . . . Recycled Matter . | . . . . . . . . . . Retrieved Matter . | . . . . . . . . . . Retrieved Components . | . . . . . . . . . . Parts Scanalyzed . | . . . . . . . . . . Part Schematics Acquired . | . . . . . . . . . . Parts Damaged . | . . . . . . . . . . Bothacking | -11 -10 -9 -8 -7 -7 -7 -7 -7 -7 ------------ Run | Scr Mat Mat Mat Fac Was Fac Low Low Dat Used RIF Installer . | . . . . . . . . . . Robots Hacked 8 | . 2 1 1 4 . . . . . Non-combat 2 | . 2 . . . . . . . . Combat 6 | . . 1 1 4 . . . . . Robot Hacks Applied 14 | . 3 1 2 8 . . . . . find_station 1 | . 1 . . . . . . . . map_route 1 | . 1 . . . . . . . . mark_security 1 | . 1 . . . . . . . . find_shortcuts 6 | . . 1 1 4 . . . . . find_garrison 5 | . . . 1 4 . . . . . Relay Couplers Released 2 | . . . . . . 2 . . . Machine Destruction 2 | . . . . . . 2 . . . Fabnet Peak Effective % . | . . . . . . . . . . Robots Rewired . | . . . . . . . . . . Allies Hacked . | . . . . . . . . . . Hacks Repelled . | . . . . . . . . . . Allies | -11 -10 -9 -8 -7 -7 -7 -7 -7 -7 -------- Run | Scr Mat Mat Mat Fac Was Fac Low Low Dat Total Allies 19 | . . . . . 19 . . . . Largest Group 19 | . . . . . 19 17 10 8 8 Highest-Rated Group 465 | . . . . . 465 425 292 239 239 Highest-Rated Ally 35 | . . . . . 35 35 35 35 35 Total Orders . | . . . . . . . . . . Ally Attacks 239 | . . . . . 14 189 1 . 35 Total Damage 6260 | . . . . . 742 4734 31 . 753 Kills 48 | . . . . . 3 43 1 . 1 Allies Corrupted 1 | . . . . . . 1 . . . Allies Melted . | . . . . . . . . . . Intel | -11 -10 -9 -8 -7 -7 -7 -7 -7 -7 ------- Run | Scr Mat Mat Mat Fac Was Fac Low Low Dat Robot Analysis Total 135 | . 2 1 1 3 . . . . 128 Derelict Logs Recovered 2 | . . . . . . . 1 1 . Drone Launches . | . . . . . . . . . . Drone Recoveries . | . . . . . . . . . . Exploration | -11 -10 -9 -8 -7 -7 -7 -7 -7 -7 ------------- Run | Scr Mat Mat Mat Fac Was Fac Low Low Dat Turns Passed 4971 | 9 103 830 434 1884 418 599 411 212 71 Spaces Moved 3643 | 18 143 411 227 849 365 755 592 201 82 Core 326 | 18 19 76 74 136 . . . . 3 Treads 750 | . . 265 . 485 . . . . . Legs 153 | . . . 153 . . . . . . Wheels 86 | . 86 . . . . . . . . Hover 2169 | . 38 70 . 69 365 755 592 201 79 Flight 159 | . . . . 159 . . . . . Fastest Speed 32 | 50 50 50 50 32 56 56 56 56 50 Average Speed 84 | 50 69 131 109 125 56 56 56 56 57 Slowest Speed 160 | 50 80 160 120 160 56 56 56 56 120 Overloaded Moves . | . . . . . . . . . . Propulsion Burnouts . | . . . . . . . . . . Robots Hopped . | . . . . . . . . . . Cave-ins Triggered . | . . . . . . . . . . Exploration Rate (%) 44 | 4 32 39 31 32 89 19 73 46 78 Regions Visited 9 Branch Regions 3 Pre-discovered Areas 31 | . . . . . . . . . 31 Known Exits Taken 3 | . 1 . . . . 1 1 . . Unknown Exits Taken 4 | 1 . 1 1 . . . . 1 . Scrap Searched 2 | . . . . . . . 1 1 . Spaces Dug . | . . . . . . . . . . Terrain Destroyed . | . . . . . . . . . . Melee . | . . . . . . . . . . Projectile . | . . . . . . . . . . AOE . | . . . . . . . . . . Terrain Rammed . | . . . . . . . . . . Walls Destroyed . | . . . . . . . . . . Machines Disabled . | . . . . . . . . . . Actions | -11 -10 -9 -8 -7 -7 -7 -7 -7 -7 --------- Run | Scr Mat Mat Mat Fac Was Fac Low Low Dat Total 5184 | 17 145 601 356 1608 486 919 659 299 94 Wait 1253 | . 3 113 76 719 28 154 59 99 2 Move 3635 | 17 142 410 226 849 364 754 591 200 82 Hop . | . . . . . . . . . . Pick Up . | . . . . . . . . . . Fast Attach . | . . . . . . . . . . Attach . | . . . . . . . . . . Detach . | . . . . . . . . . . Swap . | . . . . . . . . . . Drop . | . . . . . . . . . . Fire 178 | . . 74 54 40 2 1 3 . 4 Melee . | . . . . . . . . . . Ram . | . . . . . . . . . . Kick . | . . . . . . . . . . Crush 4 | . . 4 . . . . . . . Escape Stasis . | . . . . . . . . . . Rewire . | . . . . . . . . . . Trap . | . . . . . . . . . . Miscellaneous 114 | . . . . . 92 10 6 . 6 Route ------- -11/Scrapyard -10/Materials -9/Materials (discovered 3 exits: *Mat / [*Min x2]) -8/Materials -7/Factory -7/Waste -7/Factory (discovered 3 exits: Sto / *Low x2) -7/Lower Caves -7/Lower Caves (discovered 2 exits: [*Fac] / *Dat) -7/Data Miner (discovered 1 exit: [*Pro]) History --------- Turn | Location | Event 3 | -11/Scrapyard | Discovered new exit (range 15) 10 | -11/Scrapyard | Entered Materials 44 | -10/Materials | Discovered new exit (range 11) 112 | -10/Materials | Identified exit to Materials 113 | -10/Materials | Entered another Materials area 520 | -9/Materials | Lost 3 parts (1p1u1w) 645 | -9/Materials | Discovered new exit (range 12) 702 | -9/Materials | Discovered new exit (range 16) 806 | -9/Materials | Discovered new exit (range 10) 943 | -9/Materials | Entered another Materials area 995 | -8/Materials | Garrison activated, responded to threat 1144 | -8/Materials | Discovered new exit (range 4) 1377 | -8/Materials | Entered Factory 1407 | -7/Factory | Lost 3 parts (2n1w) 2306 | -7/Factory | Lost 4 parts (1p1n1u1w) 2561 | -7/Factory | Lost 3 parts (1n1u1w) 3183 | -7/Factory | System corruption reached 10% 3189 | -7/Factory | Core integrity fell below 50% 3261 | -7/Factory | Sucked down chute 3261 | -7/Factory | Entered Waste 3274 | -7/Waste | Spotted C-40 Crusher 3278 | -7/Waste | Spotted C-40 Crusher 3298 | -7/Waste | Spotted C-40 Crusher 3323 | -7/Waste | Spotted C-40 Crusher 3326 | -7/Waste | Spotted C-40 Crusher 3341 | -7/Waste | Assimilated C-40 Crusher with formatsys_high 3478 | -7/Waste | Assimilated C-40 Crusher with formatsys_high 3485 | -7/Waste | Spotted C-40 Crusher 3506 | -7/Waste | Allies destroyed C-40 Crusher 3525 | -7/Waste | Allies destroyed C-40 Crusher 3542 | -7/Waste | Allies destroyed C-40 Crusher 3578 | -7/Waste | Assimilated C-40 Crusher with formatsys_high 3610 | -7/Waste | Warlord forces began an assault 3635 | -7/Waste | Discovered new exit (range 16) 3679 | -7/Waste | Entered Factory 3679 | -7/Factory | Accompanied by 18 allies 4061 | -7/Factory | Identified exit to Storage 4061 | -7/Factory | Identified exit to Lower Caves 4079 | -7/Factory | First assault squad dispatched 4278 | -7/Factory | Entered Lower Caves 4278 | -7/Lower Caves | Accompanied by 11 allies 4446 | -7/Lower Caves | Learned location of 1 exit from Factory 4447 | -7/Lower Caves | Encountered a Warlord checkpoint 4596 | -7/Lower Caves | Discovered new exit (range 12) 4679 | -7/Lower Caves | Identified exit to Lower Caves 4689 | -7/Lower Caves | Entered another Lower Caves area 4689 | -7/Lower Caves | Accompanied by 9 allies 4710 | -7/Lower Caves | Discovered new exit (range 11) 4806 | -7/Lower Caves | Encountered a Warlord checkpoint 4860 | -7/Lower Caves | Discovered new exit (range 8) 4901 | -7/Lower Caves | Entered Data Miner 4901 | -7/Data Miner | Accompanied by 9 allies 4901 | -7/Data Miner | Discovered new exit (range 6) 4912 | -7/Data Miner | Met Data Miner 4923 | -7/Data Miner | Learned location of Section 7 (-2) 4923 | -7/Data Miner | Acquired the access code to Warlord's prototype stash 4933 | -7/Data Miner | Received God Mode back door access code from Data Miner 4942 | -7/Data Miner | Interfaced with the Data Conduit 4967 | -7/Data Miner | Core integrity fell below 20% 4972 | -7/Data Miner | Destroyed by Enhanced Grunt with Neutron Cannon Last Messages --------------- 04950_ NS-3SO(g) destroyed. 04950_ NE-KKU(g) destroyed. 04951_ Failed to hack Enhanced Grunt. 04955_ Enhanced Grunt critical meltdown. 04956_ 92-TDV(d) destroyed. 04957_ Failed to hack Enhanced Grunt. 04959_ Gravmag System destroyed. 04961_ Enhanced Grunt suffers critical hit (Burn). 04962_ Chain reaction triggered in Lgt. Angular Momentum Engine. 04962_ UB-ZQE(g) destroyed. 04962_ TI-6OT(g) destroyed. 04964_ Imp. Heat Sink destroyed. 04964_ Shock Rifle destroyed. 04964_ F4-D1U(g) destroyed. 04967_ System corrupted: Energy discharge (-35). 04968_ Gravmag System destroyed. 04969_ Failed to hack Enhanced Grunt. 04970_ Remote Datajack destroyed. 04970_ Imp. Heat Sink destroyed. 04971_ Released control of P-60 Hacker. Map ----- +----------------------------------------------------+ | | | | | | | | | | | | | | | | | | | | | | | | | | | ??????????????????????????????????????????????? | | ??????????????????????????????????????????????? | | ??????????????????????????????????????????????? | | ??????????????????????????????????????????????? | | ????????????????????????#######??????####?????? | | ??????###############??# # ##???### #?????? | | ?????"""""""""""""""### #??## #?????? | | ????""""""""" * """"" # ## < ##?????? | | ????"""""""" !% =% ######? | | ????""""" %%! #? | | ???"""""" [%= g #? | | ???"""""" % % % g g #? | | ???"""""" @ ##? | | ????""""" % p """"""""""""""""#####?? | | ????""""""" ! w """"###############?????? | | ????""""""" """""###???????????????????? | | ?????"""""""" "#####?????????????????????? | | ?????#######"#; "#?????????????????????????? | | ???????????#"### "#?????????????????????????? | | ???????????#"### "#?????????????????????????? | | ???????????#"## "#?????????????????????????? | | ???????????#"## "#?????????????????????????? | | ?????????????# "#?????????????????????????? | | ?????????????### "#?????????????????????????? | | ???????????????# "##????????????????????????? | | ??????????????## ""#????????????????????????? | | ???????????#?## ""#????????????????????????? | | ?????????"##"#"X ""#????????????????????????? | | ?????????"""""" "####?????????????????????? | | ?????????#""""" X"""""?????????????????????? | | ?????????###"#"X "##"#?????????????????????? | | ???????????#"## X""""#?????????????????????? | | ??????????????## "##"#?????????????????????? | | ???????????????#######????????????????????????? | | ??????????????????????????????????????????????? | | ??????????????????????????????????????????????? | | ??????????????????????????????????????????????? | +----------------------------------------------------+ Best States ------------- Heat Dissipation 43 Energy Generation 21 Energy Capacity 240 Matter Stores 100 Matter Capacity 100 Sight Range 18 Robot Scan Range 14 Terrain Scan Density 10 Armor Coverage 150 Resistance: EX 50 Resistance: EM 75 Resistance: I 25 Evasion (%) 55 Target Analysis 5 Recoil Reduction 2 Item Schematics ----------------- Combat Drone Bay | -7/Data Miner | Free Lgt. Regenerative Plating | -7/Data Miner | Free Cld. Cesium-ion Thruster | -7/Data Miner | Free Thermal Defense Suite | -7/Data Miner | Free Shock Maul | -7/Data Miner | Free Hvy. Treads | -7/Data Miner | Free Imp. Component Analysis Suite | -7/Data Miner | Free Disruptor Cannon | -7/Data Miner | Free Cloaking Device | -7/Data Miner | Free Field Propulsion Drive | -7/Data Miner | Free Robot Schematics ------------------ H-55 Commando | -7/Data Miner | Free X-67 Chaingunner | -7/Data Miner | Free G-50 Soldier | -7/Data Miner | Free R-10 Processor | -7/Data Miner | Free Fabricated ------------ Nothing Alien Tech Used ----------------- None Achievements -------------- None Challenges ------------ None Polymind | -11 -10 -9 -8 -7 -7 -7 -7 -7 -7 ---------- Run | Scr Mat Mat Mat Fac Was Fac Low Low Dat Hosts 8 | . 2 1 1 4 . . . . . Combat Hostiles 6 | . . 1 1 4 . . . . . Allies . | . . . . . . . . . . Unique Host Classes 6 | . 2 1 1 2 . . . . . Average Host Suspicion 70 | . 98 95 94 83 8 92 6 . 15 Unsuspicious Activity 9714 | . 6 69 5 574 8930 100 . . 30 Returns to Shadow 1 | . . . . 1 . . . . . Fuzzy Dispatches 1 | . . . . 1 . . . . . Protomatter Created 845 | . . 75 39 139 314 166 84 . 28 Used 226 | . 17 23 30 156 . . . . . Decayed 36 | . . 14 . . . 22 . . . Highest Spend 51 | . 12 23 30 51 . . . . . Top 5 Hosts by Kills: Y-45 Defender (-9/Materials: 12) G-47 Trooper (-8/Materials: 10) Y-54 Guardian (-7/Factory: 7) S-27 Virus (-7/Factory: 2) Y-54 Guardian (-7/Factory: 1) Game ------ Seed ChainBehemothDoublenader Manual? 0 Play Time 00:45:11 Cumulative 1216.5 hours Start 2022.12.31 @ 11:02:31 End 2022.12.31 @ 11:47:24 Sessions 1 Manual Loads 0 Difficulty Rogue Special Mode Winter2022/Polymind Game No. 446 Rogue 446 Adventurer 0 Explorer 0 Win Type - Total 26 Types 13/2/7/0/0/0/4/0/0 Lore% 89 Gallery% 90 Achievement% 85 Wizard Run 0 Options --------- ASCII 0 Keyboard 0 Movement Vi Keybinds 0 Fullscreen 0 Font 12/Crisp Map View 76x50 Tactical HUD 1 Map Filters NONE Filters NONE Steam 1 RUN: 337ee5e3-542d-4fe7-80be-4c3605dd9147